bitfinex-derivatives/quotes_ETHF0:USTF0_20250602
["timestamp","ask_amount","ask_price","bid_price","bid_amount"]
[1748868060119,0.80038,2497.6,2497.2,2.00126]
[1748868060320,1.2651,2497.5,2497.4,0.80044]
[1748868061033,1.9567,2497.5,2497.4,0.80044]
[1748868061529,0.6268,2497.8,2497.7,0.80035]
[1748868062028,3.37472497,2497.9,2497.8,0.80032]
[1748868062328,0.16692497,2497.9,2497.8,0.80032]
[1748868062531,0.16692497,2497.9,2497.8,2.16222]
[1748868062920,0.80032,2497.8,2497.7,4.00813]
[1748868063121,2.73194,2497.8,2497.7,0.80035]
[1748868063322,3.40194,2497.8,2497.7,0.5]
[1748868063532,2.6016,2497.8,2497.7,1.30035]
[1748868064331,2.6016,2497.8,2497.7,0.5]
[1748868064534,3.40192,2497.8,2497.7,0.5]
[1748868065035,2.6016,2497.8,2497.7,1.30035]
[1748868065228,3.40192,2497.8,2497.7,0.5]
[1748868065833,6.60972,2497.8,2497.7,0.5]
[1748868066632,5.8094,2497.8,2497.7,0.5]
[1748868066832,6.60972,2497.8,2497.7,0.5]
[1748868068024,11.60972,2497.8,2497.7,0.5]
[1748868069530,0.80054,2497.1,2497.0,0.00600865]
[1748868070137,0.80054,2497.1,2497.0,0.80657865]
[1748868070339,0.80054,2497.1,2497.0,0.00600865]
[1748868070528,4.00834,2497.1,2497.0,0.00600865]
[1748868071033,5.27664,2497.1,2497.0,0.00600865]
[1748868072843,2.06884,2497.1,2497.0,0.00600865]
[1748868073140,0.6316,2497.2,2497.1,0.80054]
[1748868073437,0.6285,2497.3,2497.2,0.80051]
[1748868074041,1.42899,2497.3,2497.0,2.63460865]
[1748868074233,1.42899,2497.3,2497.2,0.80051]
[1748868074540,0.6285,2497.3,2497.2,0.80051]
[1748868074740,0.6285,2497.3,2497.0,2.63460865]
[1748868074942,0.80054,2497.1,2497.0,1.48034865]
[1748868075239,0.80053,2497.2,2497.0,0.00600865]
[1748868075442,1.42899,2497.3,2497.0,0.00600865]
[1748868075629,1.42899,2497.3,2497.2,0.80051]
[1748868076038,0.6285,2497.3,2497.2,0.80051]
[1748868076242,3.2078,2497.4,2497.3,0.80048]
[1748868077237,3.2078,2497.4,2497.3,2.09688]
[1748868077734,0.07069789,2497.5,2497.4,0.80044]
[1748868077935,0.07069789,2497.5,2497.4,2.15854]
[1748868078136,0.87110789,2497.5,2497.4,2.15854]
[1748868078435,0.67110789,2497.5,2497.4,2.15854]
[1748868078740,0.80048,2497.3,2497.2,1.47809]
[1748868078941,0.80054,2497.1,2497.0,1.48586865]
[1748868079140,0.80054,2497.1,2497.0,1.48587865]
[1748868079340,0.80053,2497.2,2497.1,0.80052]
[1748868079542,2.15803,2497.2,2497.1,0.80052]
[1748868079744,0.80054,2497.1,2497.0,0.68530865]
[1748868079940,0.80054,2497.1,2497.0,1.48587865]
[1748868080144,1.3575,2497.2,2497.0,0.68530865]
[1748868080446,0.80053,2497.2,2497.1,0.80054]
[1748868080842,0.07069789,2497.1,2497.0,0.68530865]
[1748868081041,0.87123789,2497.1,2497.0,2.82777865]
[1748868081244,0.07069789,2497.1,2497.0,2.82777865]
[1748868082240,0.07069789,2497.1,2497.0,6.03557865]
[1748868082844,0.07069789,2497.1,2497.0,7.41361395]
[1748868083242,0.07069789,2497.1,2497.0,12.41361395]
[1748868083550,0.07069789,2497.1,2497.0,6.03557865]
[1748868085146,0.07069789,2497.1,2497.0,12.41347155]
[1748868085447,0.07069789,2497.1,2497.0,11.03557865]
[1748868087442,0.07069789,2497.1,2497.0,6.03557865]
[1748868087745,0.07069789,2497.1,2497.0,7.41377565]
[1748868087948,0.07069789,2497.1,2497.0,7.91377565]
[1748868088148,0.07069789,2497.1,2497.0,12.91377565]
[1748868090047,0.07069789,2497.1,2497.0,11.53557865]
[1748868090349,0.87123789,2497.1,2497.0,3.32777865]
[1748868090738,0.87123789,2497.1,2497.0,0.50600865]
[1748868091341,0.87123789,2497.1,2497.0,1.30657865]
[1748868092951,0.87123789,2497.1,2497.0,0.50600865]
[1748868093948,0.87123789,2497.1,2497.0,1.30657865]
[1748868094152,0.07069789,2497.1,2497.0,1.30657865]
[1748868094352,0.87123789,2497.1,2497.0,1.30657865]
[1748868094551,0.07069789,2497.1,2497.0,1.30657865]
[1748868095143,1.45319789,2497.1,2497.0,1.30657865]
[1748868097155,0.07069789,2497.1,2497.0,1.30657865]
[1748868097855,0.07069789,2497.1,2497.0,2.68217865]
[1748868098349,0.07069789,2497.1,2497.0,4.06167288]
[1748868099450,0.07069789,2497.1,2497.0,3.56167288]
[1748868099946,0.07069789,2497.1,2497.0,6.76947288]
[1748868102252,0.07069789,2497.1,2497.0,8.14877235]
[1748868102553,0.07069789,2497.1,2497.0,6.77317235]
[1748868102754,0.07069789,2497.1,2497.0,5.97260235]
[1748868102954,0.87123789,2497.1,2497.0,5.39367812]
[1748868103147,1.51913789,2497.1,2497.0,1.38530812]
[1748868103348,2.79573789,2497.1,2497.0,0.00600865]
[1748868103951,2.79573789,2497.1,2497.0,0.80657865]
[1748868105558,2.79573789,2497.1,2497.0,0.00600865]
[1748868106658,2.79573789,2497.1,2497.0,0.80657865]
[1748868106957,2.79573789,2497.1,2497.0,0.00600865]
[1748868107259,7.79573789,2497.1,2497.0,0.00600865]
[1748868107458,2.79573789,2497.1,2497.0,0.00600865]
[1748868108761,7.79573789,2497.1,2497.0,0.00600865]
[1748868110657,7.79573789,2497.1,2496.7,1.18334109]
[1748868110658,0.80064,2496.8,2496.7,1.18334109]
[1748868110961,4.00844,2496.8,2496.7,1.18334109]
[1748868111154,9.00844,2496.8,2496.7,1.18334109]
[1748868111356,4.00844,2496.8,2496.7,1.18334109]
[1748868111555,9.00844,2496.8,2496.7,1.18334109]
[1748868113364,4.00844,2496.8,2496.7,1.18334109]
[1748868113862,4.68844,2496.8,2496.7,1.18334109]
[1748868114262,9.68844,2496.8,2496.7,0.35032109]
[1748868114565,0.8007,2496.6,2496.5,0.00600865]
[1748868114767,0.8007,2496.6,2496.5,8.65e-06]
[1748868114967,5.8007,2496.6,2496.5,8.65e-06]
[1748868116466,0.8007,2496.6,2496.5,8.65e-06]
[1748868121669,0.8007,2496.6,2496.5,0.68370865]
[1748868121877,0.8007,2496.6,2496.5,8.65e-06]
[1748868125672,0.87139789,2496.6,2496.5,8.65e-06]
[1748868126078,0.87139789,2496.6,2496.5,1.30860865]
[1748868129873,0.87139789,2496.6,2496.5,2.10933865]
[1748868130072,0.07069789,2496.6,2496.5,2.10933865]
[1748868130280,0.07069789,2496.6,2496.5,8.4792236]
[1748868130482,0.00596805,2497.0,2496.9,0.8006]
[1748868130681,0.80653805,2497.0,2496.9,3.2078]
[1748868130876,0.80653805,2497.0,2496.9,5.9321]
[1748868131278,0.80653805,2497.0,2496.9,6.7327]
[1748868131683,0.00596805,2497.0,2496.9,6.7327]
[1748868132379,0.00596805,2497.0,2496.9,8.10269389]
[1748868133378,0.00596805,2497.0,2496.9,13.10269389]
[1748868133579,0.00596805,2497.0,2496.9,14.67826367]
[1748868134580,4.00596805,2497.0,2496.9,13.10262541]
[1748868136184,0.80041,2497.6,2497.5,0.80041]
[1748868137684,0.80043,2497.6,2497.5,5.0]
[1748868137881,0.006,2497.8,2497.7,0.80035]
[1748868138385,0.006,2497.8,2497.7,5.80035]
[1748868138687,0.80632,2497.8,2497.7,0.80035]
[1748868138884,0.80035,2497.7,2497.6,2.79215]
[1748868139083,0.80035,2497.7,2497.6,0.6522]
[1748868142083,2.0034,2497.8,2497.1,3.2078]
[1748868142084,4.0042,2497.8,2497.1,3.2078]
[1748868142285,0.80047,2497.3,2497.2,0.6755]
[1748868143491,0.80049,2497.2,2497.1,3.2078]
[1748868146293,0.80049,2497.2,2496.8,3.8833]
[1748868146294,0.80059,2496.9,2496.8,3.8833]
[1748868146584,0.80059,2496.9,2496.5,3.20780865]
[1748868146585,0.80069,2496.6,2496.5,3.20780865]
[1748868147388,0.80069,2496.6,2496.5,8.65e-06]
[1748868147984,2.08059,2496.6,2496.5,8.65e-06]
[1748868155893,0.80069,2496.6,2496.5,8.65e-06]
[1748868156198,0.87138789,2496.6,2496.5,8.65e-06]
[1748868156597,0.87138789,2496.6,2496.5,1.36821809]
[1748868156893,0.07069789,2496.6,2496.5,6.36821809]
[1748868157098,0.07069789,2496.6,2496.5,9.57601809]
[1748868157299,0.07069789,2496.6,2496.5,9.00852865]
[1748868157499,0.07069789,2496.6,2496.5,10.37649458]
[1748868158296,0.07069789,2496.6,2496.5,11.01869458]
[1748868159002,0.07069789,2496.6,2496.5,12.28229458]
[1748868159601,0.87138789,2496.6,2496.5,12.28229458]
[1748868159900,0.07069789,2496.6,2496.5,12.28229458]
[1748868160505,0.87138789,2496.6,2496.5,11.48157458]
[1748868160894,0.07069789,2496.6,2496.5,12.28229458]
[1748868161496,0.07069789,2496.6,2496.5,13.65084206]
[1748868162803,0.07069789,2496.6,2496.5,12.28287613]
[1748868163503,0.80045,2497.4,2497.3,0.80046]
[1748868163707,0.6644,2497.6,2497.5,0.8004]
[1748868164005,1.46477,2497.6,2497.5,1.36854748]
[1748868165500,1.46477,2497.6,2497.5,2.16894748]
[1748868166102,0.6644,2497.6,2497.5,3.53633884]
[1748868166304,1.46477,2497.6,2497.5,2.73593884]
[1748868166702,1.46477,2497.6,2497.5,2.16779136]
[1748868167008,0.80036,2497.7,2497.5,1.36739136]
[1748868167306,0.80037,2497.6,2497.5,1.2671]
[1748868167506,0.80037,2497.6,2497.5,2.6342749]
[1748868168405,0.80037,2497.6,2497.5,3.4346749]
[1748868168606,0.80037,2497.6,2497.5,2.6342749]
[1748868168905,0.80037,2497.6,2497.5,3.4346749]
[1748868169406,2.11536,2497.7,2497.5,2.63452162]
[1748868169606,0.80631,2497.8,2497.6,4.00814]
[1748868169903,0.80631,2497.8,2497.6,3.2078]
[1748868169904,0.80034,2497.7,2497.6,3.2078]
[1748868170099,2.14033,2497.8,2497.7,0.80034]
[1748868170499,2.1403,2497.8,2497.7,0.80034]
[1748868170800,1.34,2497.8,2497.7,0.80034]
[1748868170999,0.006,2497.8,2497.7,0.80034]
[1748868171396,0.006,2497.8,2497.7,2.16763098]
[1748868171600,0.8063,2497.8,2497.7,0.80034]
[1748868171893,0.80034,2497.7,2497.6,3.2078]
[1748868172099,0.80034,2497.7,2497.6,4.57499457]
[1748868172504,2.17914,2497.7,2497.6,5.37536457]
[1748868173306,1.3788,2497.7,2497.6,4.00817]
[1748868173511,0.80034,2497.7,2497.6,4.00815]
[1748868173802,0.006,2497.8,2497.7,0.80034]
[1748868174106,0.006,2497.8,2497.7,2.11064]
[1748868174507,0.8063,2497.8,2497.7,2.11064]
[1748868174912,0.80034,2497.7,2497.6,4.00815]
[1748868175105,0.006,2497.8,2497.7,0.80034]
[1748868175402,0.8063,2497.8,2497.7,0.80034]
[1748868175612,0.006,2497.8,2497.7,0.80034]
[1748868177410,0.006,2497.8,2497.7,2.16626162]
[1748868177609,0.006,2497.8,2497.7,0.80034]
[1748868177909,0.006,2497.8,2497.7,2.16625273]
[1748868178614,0.006,2497.8,2497.7,2.16613289]
[1748868179214,0.006,2497.8,2497.7,0.80034]
[1748868179815,0.006,2497.8,2497.7,2.16620629]
[1748868180816,0.006,2497.8,2497.7,2.16640952]
[1748868181115,0.16692497,2497.9,2497.8,0.8003]
[1748868181314,0.16692497,2497.9,2497.8,2.8388]
[1748868181515,0.6843,2498.5,2497.8,11.03996]
[1748868181711,1.2899,2498.4,2498.3,3.2078]
[1748868181913,2.09001,2498.4,2498.3,3.2078]
[1748868182119,2.09001,2498.4,2498.3,4.00794]
[1748868182411,2.09001,2498.4,2498.3,3.2078]
[1748868183315,2.09001,2498.4,2498.3,4.00794]
[1748868183519,0.80018,2498.2,2498.1,0.00600865]
[1748868183818,0.80015,2498.3,2498.2,0.80014]
[1748868184011,2.08475,2498.3,2498.2,0.80014]
[1748868184226,1.2846,2498.3,2498.2,0.80014]
[1748868184529,0.80013,2498.4,2498.3,0.80011]
[1748868184724,2.08473,2498.4,2498.3,4.00791]
[1748868184931,1.2846,2498.4,2498.3,4.00791]
[1748868185625,1.4844,2498.5,2498.4,0.80011]
[1748868185626,0.6843,2498.5,2498.4,0.80011]
[1748868185936,1.99965,2499.2,2498.4,3.3663782]
[1748868186125,0.79995,2498.9,2498.8,3.2078]
[1748868186829,1.99998,2498.8,2498.4,4.5738882]
[1748868187031,0.80008,2498.5,2498.4,4.5738882]
[1748868187329,0.80008,2498.5,2498.4,5.3739982]
[1748868187632,1.3573,2498.6,2498.4,3.2078]
[1748868187833,2.15736,2498.6,2498.5,0.80008]
[1748868188028,0.80008,2498.5,2498.4,4.00789]
[1748868188331,2.15738,2498.5,2498.4,3.2078]
[1748868188724,1.3573,2498.5,2498.4,4.00791]
[1748868188933,1.3368,2498.7,2498.5,0.80006]
[1748868189132,1.3368,2498.7,2498.6,0.80005]
[1748868189936,2.13682,2498.7,2498.6,0.80005]
[1748868190231,2.15728,2498.9,2498.8,0.79998]
[1748868190428,0.80003,2498.7,2498.6,0.80002]
[1748868190627,0.80003,2498.7,2498.6,1.48972]
[1748868190834,0.80001,2498.8,2498.7,0.79999]
[1748868191035,0.80001,2498.8,2498.7,4.00779]
[1748868191439,0.80001,2498.8,2498.7,3.2078]
[1748868191826,0.80001,2498.8,2498.7,4.57460495]
[1748868192031,0.80001,2498.8,2498.7,3.2078]
[1748868194242,0.80011,2498.4,2498.3,0.6897]
[1748868194441,0.80011,2498.4,2498.3,1.36814125]
[1748868194637,0.80014,2498.3,2498.2,3.2078]
[1748868195140,0.80018,2498.2,2498.1,0.00600865]
[1748868195340,2.06478,2498.2,2498.1,0.00600865]
[1748868196136,2.06478,2498.2,2498.0,0.14604121]
[1748868196137,0.80021,2498.1,2498.0,0.14604121]
[1748868196339,0.80021,2498.1,2497.9,3.2078]
[1748868196340,0.80043,2497.4,2497.3,1.17834165]
[1748868196536,4.00823,2497.4,2497.3,1.17834165]
[1748868198137,9.00823,2497.4,2497.3,0.34194165]
[1748868198333,9.00823,2497.4,2497.3,1.65e-06]
[1748868198642,0.8005,2497.2,2497.1,3e-07]
[1748868199036,0.80056,2497.0,2496.9,2.25843209]
[1748868199241,0.80062,2496.8,2496.7,1.18055391]
[1748868199635,2.00163,2496.8,2496.3,0.6893]
[1748868199942,0.80075,2496.4,2496.3,0.6893]
[1748868200138,0.80075,2496.4,2496.3,0.69530865]
[1748868202543,0.80075,2496.4,2496.3,1.49608865]
[1748868202744,0.80075,2496.4,2496.3,0.69530865]
[1748868208845,0.80075,2496.4,2496.3,0.00600865]
[1748868209143,2.07425,2496.4,2496.3,0.00600865]
[1748868210939,7.54435,2496.4,2496.3,8.65e-06]
[1748868212045,0.80075,2496.4,2496.3,8.65e-06]
[1748868212746,4.00854,2496.5,2496.4,0.80075]
[1748868212949,1.40125,2496.4,2496.3,0.80076865]
[1748868213242,0.6005,2496.4,2496.3,0.80076865]
[1748868214248,1.40125,2496.4,2496.3,0.80076865]
[1748868214552,1.40125,2496.4,2496.3,8.65e-06]
[1748868214936,0.6005,2496.4,2496.3,0.80078865]
[1748868216045,0.67119789,2496.4,2496.3,0.80078865]
[1748868222155,0.67119789,2496.4,2496.3,2.11762578]
[1748868223249,0.80061,2497.0,2496.9,0.80056]
[1748868223456,4.00834,2497.1,2497.0,0.80056]
[1748868224658,0.80062,2496.9,2496.8,0.80058]
[1748868224853,0.80062,2496.9,2496.8,2.12237183]
[1748868225156,0.80062,2496.9,2496.8,1.32179183]
[1748868225453,0.80062,2496.8,2496.7,0.80064]
[1748868225755,0.80062,2496.8,2496.7,2.12453135]
[1748868227859,0.80062,2496.9,2496.8,0.80059]
[1748868228055,0.80062,2496.9,2496.8,2.12448135]
[1748868228257,2.79378,2497.0,2496.9,0.80059]
[1748868228457,0.80062,2496.9,2496.8,0.8006]
[1748868229054,0.80066,2496.8,2496.7,0.80064]
[1748868229660,4.00846,2496.8,2496.7,1.32457163]
[1748868229863,0.80072,2496.5,2496.4,1.57881116]
[1748868230158,0.80072,2496.5,2496.4,2.90354934]
[1748868230356,0.80072,2496.5,2496.4,3.70426934]
[1748868230653,0.80072,2496.5,2496.4,2.90354934]
[1748868230857,4.00852,2496.5,2496.4,2.90354934]
[1748868231058,5.31202,2496.5,2496.4,1.57881116]
[1748868231555,0.80075,2496.4,2496.3,2.37958981]
[1748868231859,2.10425,2496.4,2496.3,3.70486605]
[1748868232059,1.3035,2496.4,2496.3,3.70486605]
[1748868232258,1.3035,2496.4,2496.3,3.70477399]
[1748868232560,2.10425,2496.4,2496.3,3.70477399]
[1748868233060,2.10425,2496.4,2496.3,2.90400399]
[1748868233661,2.10425,2496.4,2496.3,1.57881981]
[1748868233959,2.10425,2496.4,2496.3,8.65e-06]
[1748868235056,7.10425,2496.4,2496.3,8.65e-06]
[1748868238960,2.10425,2496.4,2496.3,8.65e-06]
[1748868239164,0.80075,2496.4,2496.3,0.80079865]
[1748868239662,0.80075,2496.4,2496.3,8.65e-06]
[1748868240464,2.05465,2496.4,2496.3,8.65e-06]
[1748868241161,2.05465,2496.4,2496.3,0.80079865]
[1748868241368,0.80075,2496.4,2496.3,2.12488112]
[1748868241565,4.00854,2496.5,2496.4,0.80075]
[1748868242071,4.00854,2496.5,2496.4,3.44927068]
[1748868242866,4.00854,2496.5,2496.4,2.12495]
[1748868243069,0.80068,2496.7,2496.6,0.80069]
[1748868243260,0.80068,2496.7,2496.4,1.3242]
[1748868243261,4.73434789,2496.8,2496.7,0.80066]
[1748868243460,3.27849789,2496.8,2496.7,0.80066]
[1748868243656,3.27849789,2496.8,2496.7,2.12469129]
[1748868244463,3.2078,2496.8,2496.7,2.12469129]
[1748868244663,0.8006,2496.9,2496.8,0.80063]
[1748868244867,0.80068,2496.7,2496.6,0.80068]
[1748868245061,0.80068,2496.7,2496.6,2.10688]
[1748868245771,0.80064,2496.8,2496.7,0.80064]
[1748868246469,0.80065,2496.8,2496.7,0.80064]
[1748868246971,0.80066,2496.7,2496.6,3.43074647]
[1748868248074,0.80066,2496.7,2496.6,2.63007647]
[1748868248270,0.80066,2496.7,2496.6,1.32387647]
[1748868248467,0.80075,2496.4,2496.3,8.65e-06]
[1748868248661,4.07924789,2496.4,2496.3,1.32445602]
[1748868248863,4.07924789,2496.4,2496.3,8.65e-06]
[1748868249562,9.07924789,2496.4,2496.3,8.65e-06]
[1748868255978,9.67984789,2496.4,2496.3,8.65e-06]
[1748868256873,4.67984789,2496.4,2496.3,8.65e-06]
[1748868257479,4.67984789,2496.4,2496.3,1.31050865]
[1748868257673,4.67984789,2496.4,2496.3,8.65e-06]
[1748868261785,9.67984789,2496.4,2496.3,8.65e-06]
[1748868264377,4.67984789,2496.4,2496.3,8.65e-06]
[1748868264575,9.67984789,2496.4,2496.3,8.65e-06]
[1748868265383,4.67984789,2496.4,2496.3,8.65e-06]
[1748868265985,9.67984789,2496.4,2496.3,8.65e-06]
[1748868266681,0.80091,2495.9,2495.8,1.3105]
[1748868266887,4.00871,2495.9,2495.8,1.3105]
[1748868271386,0.80095,2495.8,2495.7,0.649]
[1748868272285,0.80098,2495.7,2495.6,0.00600865]
[1748868272783,2.13828,2495.7,2495.6,0.00600865]
[1748868273982,0.80098,2495.7,2495.6,0.00600865]
[1748868276491,2.08958,2495.7,2495.6,8.65e-06]
[1748868277585,2.4995248,2495.7,2495.6,8.65e-06]
[1748868278587,7.4995248,2495.7,2495.6,8.65e-06]
[1748868278792,0.80098,2495.7,2495.6,8.65e-06]
[1748868281783,0.80098,2495.7,2495.6,2.00540865]
[1748868281990,0.80098,2495.7,2495.6,2.64760865]
[1748868282388,0.80098,2495.7,2495.6,4.00770043]
[1748868283298,0.80098,2495.7,2495.6,2.64760865]
[1748868283485,0.80098,2495.7,2495.6,2.00880865]
[1748868283883,0.80098,2495.7,2495.6,0.64220865]
[1748868284588,1.40178,2495.7,2495.6,0.64220865]
[1748868290207,1.47247789,2495.7,2495.6,0.64220865]
[1748868291599,1.47247789,2495.7,2495.6,2.00376175]
[1748868292505,1.47247789,2495.7,2495.6,3.38588466]
[1748868293409,1.47247789,2495.7,2495.6,4.18689466]
[1748868293604,1.47247789,2495.7,2495.6,3.38588466]
[1748868296017,1.47247789,2495.7,2495.6,8.65e-06]
[1748868296616,2.81867789,2495.7,2495.6,8.65e-06]
[1748868300916,1.47247789,2495.7,2495.6,8.65e-06]
[1748868302109,1.47247789,2495.7,2495.6,1.36237818]
[1748868302513,1.47247789,2495.7,2495.6,1.99877818]
[1748868302914,1.47247789,2495.7,2495.6,3.36107062]
[1748868303317,1.47247789,2495.7,2495.6,1.99877818]
[1748868303618,1.47247789,2495.7,2495.6,4.7233489]
[1748868304019,1.47247789,2495.7,2495.6,3.36097937]
[1748868304411,0.67149789,2495.7,2495.6,4.16198937]
[1748868304618,0.67149789,2495.7,2495.6,9.16198937]
[1748868304820,0.67149789,2495.7,2495.6,10.34953327]
[1748868305020,1.47247789,2495.7,2495.6,11.71183665]
[1748868305516,1.47247789,2495.7,2495.6,5.91082665]
[1748868306923,1.47247789,2495.7,2495.6,5.9109701]
[1748868307624,1.47247789,2495.7,2495.6,6.0306262]
[1748868308419,1.47247789,2495.7,2495.6,4.0870262]
[1748868309923,1.47247789,2495.7,2495.6,2.7246033]
[1748868312129,6.47247789,2495.7,2495.6,1.7697233]
[1748868312326,6.47247789,2495.7,2495.6,3.3e-06]
[1748868312629,0.80108,2495.4,2495.3,0.37821639]
[1748868312829,4.00888,2495.4,2495.3,0.37821639]
[1748868313023,0.80117,2495.1,2495.0,1.18854738]
[1748868313227,4.00897,2495.1,2495.0,1.18854738]
[1748868314024,5.37427,2495.1,2495.0,1.18854738]
[1748868314218,0.80124,2494.9,2494.8,0.00600865]
[1748868315128,1.40234,2494.9,2494.8,0.00600865]
[1748868315932,1.40234,2494.9,2494.8,1.34390865]
[1748868316436,1.40234,2494.9,2494.8,0.00600865]
[1748868319037,6.40234,2494.9,2494.8,0.00600865]
[1748868319334,1.40234,2494.9,2494.8,0.00600865]
[1748868320729,1.47303789,2494.9,2494.8,0.00600865]
[1748868321235,0.67179789,2494.9,2494.8,5.80727865]
[1748868321626,1.47303789,2494.9,2494.8,1.99410865]
[1748868322238,0.67179789,2494.9,2494.8,2.79537865]
[1748868322436,0.67179789,2494.9,2494.8,7.79537865]
[1748868322831,5.21033,2495.7,2494.8,7.79537865]
[1748868322832,3.2078,2495.7,2495.0,2.00297]
[1748868323032,0.80109,2495.4,2495.2,0.80112]
[1748868323233,0.80109,2495.4,2495.3,1.42731]
[1748868323937,0.80109,2495.4,2495.3,0.6262]
[1748868324434,0.80109,2495.4,2495.3,1.3198]
[1748868324936,0.80109,2495.4,2495.3,2.12091]
[1748868325131,0.80106,2495.5,2495.4,0.80107]
[1748868325537,3.2078,2495.7,2495.4,0.80107]
[1748868325538,3.2078,2495.7,2495.4,5.0]
[1748868325734,3.2078,2495.7,2495.6,0.80101]
[1748868325938,4.00878,2495.7,2495.6,0.80101]
[1748868326639,3.2078,2495.7,2495.6,0.80101]
[1748868327133,0.00600865,2496.1,2495.9,0.80089]
[1748868327334,0.80685865,2496.1,2496.0,2.6887]
[1748868328936,0.80685865,2496.1,2496.0,3.48958]
[1748868329337,0.00600865,2496.1,2496.0,3.48958]
[1748868329537,0.00600865,2496.1,2496.0,8.48958]
[1748868332442,0.80685865,2496.1,2496.0,8.48958]
[1748868332644,0.00600865,2496.1,2496.0,3.48958]
[1748868332845,0.00600865,2496.1,2496.0,8.48958]
[1748868335043,0.07670654,2496.1,2496.0,8.48958]
[1748868336747,4.00847,2496.7,2496.0,8.48958]
[1748868336945,0.80067,2496.7,2496.6,0.80069]
[1748868337352,0.80065,2496.8,2496.7,0.80061]
[1748868337850,4.00845,2496.8,2496.7,0.80061]
[1748868338044,4.00845,2496.8,2496.7,2.12111]
[1748868338449,4.00845,2496.8,2496.7,1.3205]
[1748868339255,0.80069,2496.6,2496.5,0.00600865]
[1748868340355,2.07319,2496.6,2496.5,0.00600865]
[1748868341148,0.80069,2496.6,2496.5,0.80672865]
[1748868341351,0.6589,2496.7,2496.6,0.80069]
[1748868341352,0.80068,2496.7,2496.6,0.80069]
[1748868341856,4.00845,2496.8,2496.7,0.80066]
[1748868342042,0.80066,2496.7,2496.6,2.06448]
[1748868342248,0.80066,2496.7,2496.6,1.2638]
[1748868342449,0.80066,2496.7,2496.6,2.06449]
[1748868343248,0.80066,2496.7,2496.6,1.2638]
[1748868344257,0.80066,2496.7,2496.6,0.80069]
[1748868344456,0.80069,2496.7,2496.6,0.80067]
[1748868344754,0.80069,2496.6,2496.5,0.00600865]
[1748868348254,0.80069,2496.6,2496.5,8.65e-06]
[1748868348557,5.80069,2496.6,2496.5,8.65e-06]
[1748868349651,0.80069,2496.6,2496.5,8.65e-06]
[1748868350257,0.87138789,2496.6,2496.5,8.65e-06]
[1748868352353,1.47148789,2496.6,2496.5,8.65e-06]
[1748868359760,0.80091,2495.9,2495.8,2.35256258]
[1748868359964,0.80091,2495.9,2495.8,5.09735648]
[1748868360160,3.2078,2496.1,2495.8,2.7447939]
[1748868360466,0.80088,2496.0,2495.9,1.3577939]
[1748868360964,2.15538,2496.0,2495.9,1.3577939]
[1748868361662,0.80091,2495.9,2495.8,1.387]
[1748868361958,0.80091,2495.9,2495.8,2.74465682]
[1748868363061,0.80091,2495.9,2495.8,1.35765682]
[1748868363362,0.80095,2495.8,2495.7,0.00600865]
[1748868367163,0.80094,2495.9,2495.7,2.04880865]
[1748868367363,0.80094,2495.9,2495.8,2.0391]
[1748868367766,4.07939789,2496.0,2495.8,2.0391]
[1748868368073,3.27849789,2496.0,2495.9,0.80091]
[1748868368366,4.07937789,2496.0,2495.9,2.19061]
[1748868368567,4.07937789,2496.0,2495.9,1.3897]
[1748868369071,3.27849789,2496.0,2495.9,2.19061]
[1748868369866,4.07937789,2496.0,2495.9,1.3897]
[1748868371772,4.07937789,2496.0,2495.9,2.19062]
[1748868372069,3.27849789,2496.0,2495.9,2.19062]
[1748868372268,4.07937789,2496.0,2495.9,2.19062]
[1748868373872,4.07937789,2496.0,2495.9,1.3897]
[1748868374070,4.07937789,2496.0,2495.9,2.19061]
[1748868374572,0.87157789,2496.0,2495.9,2.19061]
[1748868375573,0.07069789,2496.0,2495.9,2.19061]
[1748868376373,0.87157789,2496.0,2495.9,2.19061]
[1748868376575,0.07069789,2496.0,2495.9,2.19061]
[1748868378475,0.67099789,2496.0,2495.9,2.19061]
[1748868379483,0.67099789,2496.0,2495.9,3.54305959]
[1748868379777,1.47187789,2496.0,2495.9,3.54305959]
[1748868380369,0.67099789,2496.0,2495.9,3.54305959]
[1748868382877,0.67099789,2496.0,2495.9,3.54304158]
[1748868383769,1.47187789,2496.0,2495.9,3.54304158]
[1748868384370,3.87879789,2496.0,2495.9,3.54304158]
[1748868385782,4.67967789,2496.0,2495.9,2.15334158]
[1748868385984,0.67099789,2496.0,2495.9,2.15334158]
[1748868386177,0.67099789,2496.0,2495.9,3.44244158]
[1748868386685,0.67099789,2496.0,2495.9,3.44240382]
[1748868386883,1.47187789,2496.0,2495.9,3.44240382]
[1748868387182,0.67099789,2496.0,2495.9,3.44240382]
[1748868387683,0.67099789,2496.0,2495.9,2.15330382]
[1748868387877,1.47187789,2496.0,2495.9,1.35239382]
[1748868388681,2.75137789,2496.0,2495.9,2.15331382]
[1748868389382,1.95049789,2496.0,2495.9,2.15331382]
[1748868390684,1.95049789,2496.0,2495.9,0.80092]
[1748868390883,1.95049789,2496.0,2495.9,2.15413693]
[1748868391190,1.95049789,2496.0,2495.9,2.15394511]
[1748868391590,2.75137789,2496.0,2495.9,2.15394511]
[1748868392089,1.95049789,2496.0,2495.9,2.15394511]
[1748868392681,0.80092,2495.9,2495.7,0.65910865]
[1748868392881,1.3811,2495.8,2495.7,1.46008865]
[1748868393197,1.3811,2495.8,2495.7,2.16003985]
[1748868394983,1.3811,2495.8,2495.7,0.80698865]
[1748868395494,1.3811,2495.8,2495.7,2.16043282]
[1748868396087,2.18205,2495.8,2495.7,1.35945282]
[1748868396289,2.18205,2495.8,2495.7,0.00600865]
[1748868398391,7.18205,2495.8,2495.7,0.00600865]
[1748868400495,7.78245,2495.8,2495.7,0.00600865]
[1748868401393,0.80114,2495.2,2495.1,2.37042715]
[1748868401598,4.00894,2495.2,2495.1,2.37042715]
[1748868402284,5.33634,2495.2,2495.1,2.37042715]
[1748868402485,10.33634,2495.2,2495.1,2.37042715]
[1748868405498,5.33634,2495.2,2495.1,2.37042715]
[1748868410210,5.40703789,2495.2,2495.1,2.37042715]
[1748868410912,0.07069789,2495.2,2495.1,3.17159715]
[1748868411305,0.07069789,2495.2,2495.1,8.17159715]
[1748868412016,0.07069789,2495.2,2495.1,3.17159715]
[1748868412322,0.87183789,2495.2,2495.1,3.17159715]